fUSD/lending_fUSD_20240105
["ID","MTS","AMOUNT","RATE_DAILY","PERIOD"]
[310245669,1704414693067,-151.82351085,0.0004,10]
[310245670,1704414693077,-255.0,0.0004,12]
[310245671,1704414693086,-192.380908,0.0004,12]
[310245672,1704414693096,-304.434168,0.0004,12]
[310245673,1704414693105,-255.0,0.0004,12]
[310245674,1704414693114,-522.67,0.0004,2]
[310245675,1704414693123,-230.0,0.0004,30]
[310245676,1704414693133,-639.70936877,0.0004,30]
[310245677,1704414693144,-255.0,0.0004,12]
[310245678,1704414693154,-1303.04841889,0.0004,30]
[310245679,1704414693164,-330.0,0.0004,7]
[310245680,1704414693174,-330.0,0.0004,7]
[310245681,1704414693184,-330.0,0.0004,7]
[310245682,1704414693194,-330.0,0.0004,7]
[310245683,1704414693204,-255.0,0.0004,12]
[310245684,1704414693215,-10000.0,0.0004,12]
[310245685,1704414693225,-330.0,0.0004,7]
[310245686,1704414693235,-330.0,0.0004,7]
[310245687,1704414693246,-1962.663428,0.0004,12]
[310245688,1704414693256,-500.0,0.0004,15]
[310245689,1704414693267,-151.0,0.0004,7]
[310245690,1704414693278,-216.58934,0.0004,7]
[310245691,1704414693288,-216.58934,0.0004,7]
[310245692,1704414693298,-495.900744,0.0004,7]
[310245693,1704414693308,-495.900744,0.0004,7]
[310245694,1704414693318,-679.90090454,0.0004,10]
[310245695,1704414693328,-255.0,0.0004,12]
[310245696,1704414693337,-150.0,0.0004,15]
[310245697,1704414693347,-300.0,0.0004,15]
[310245698,1704414693357,-150.0,0.0004,2]
[310245699,1704414693367,-151.0,0.0004,7]
[310245700,1704414693377,-1000.0,0.0004,2]
[310245701,1704414693387,-1175.413069,0.0004,7]
[310245702,1704414693400,-1175.413069,0.0004,7]
[310245703,1704414693410,-151.0,0.0004,7]
[310245704,1704414693421,-151.0,0.0004,7]
[310245705,1704414693431,-151.0,0.0004,7]
[310245706,1704414693442,-376.348005,0.0004,2]
[310245707,1704414693453,-915.5646056,0.0004,3]
[310245708,1704414693464,-255.0,0.0004,12]
[310245709,1704414693474,-1779.52,0.0004,5]
[310245710,1704414693483,-10860.0,0.0004,5]
[310245711,1704414693493,-792.0,0.0004004,20]
[310245712,1704414693503,-169.0,0.0004007,60]
[310245713,1704414693513,-169.0,0.0004008,60]
[310245714,1704414693522,-220.0,0.00040082,28]
[310245715,1704414693532,-169.0,0.0004009,60]
[310245716,1704414693541,-527.327335,0.000401,15]
[310245717,1704414693551,-653.35,0.00040109,94]
[310245718,1704414693561,-500.0,0.00040109,92]
[310245719,1704414693570,-152.40859416,0.00040177,2]
[310245720,1704414693580,-150.0,0.00040179,3]
[310245721,1704414693589,-707667.85325146,0.0004018,9]
[310245722,1704414693599,-80000.0,0.0004018,9]
[310245723,1704414693607,-151.0,0.0004018,7]
[310245724,1704414693617,-151.0,0.0004018,7]
[310245725,1704414693628,-151.0,0.0004018,7]
[310245726,1704414693638,-151.0,0.0004018,7]
[310245727,1704414693651,-151.0,0.0004018,7]
[310245728,1704414693660,-151.0,0.0004018,7]
[310245729,1704414693670,-212.581512,0.0004018,7]
[310245730,1704414693679,-212.581512,0.0004018,7]
[310245731,1704414693689,-151.0,0.0004018,7]
[310245732,1704414693698,-520.818755,0.0004018,7]
[310245733,1704414693707,-520.818755,0.0004018,7]
[310245734,1704414693717,-151.0,0.0004018,7]
[310245735,1704414693728,-1444.827588,0.0004018,7]
[310245736,1704414693740,-1444.827588,0.0004018,7]
[310245737,1704414693749,-151.0,0.0004018,7]
[310245738,1704414693760,-151.0,0.0004018,7]
[310245739,1704414693770,-153.84,0.00040183,2]
[310245740,1704414693783,-157.40104,0.00040198,2]
[310245741,1704414693793,-552.19624583,0.000402,30]
[310245742,1704414693802,-4625.45,0.000402,7]
[310245743,1704414693811,-917.31,0.000402,7]
[310245744,1704414693820,-13018.92,0.000402,7]
[310245745,1704414693830,-419.32806395,0.00040221,10]
[310245746,1704414693839,-210.0,0.00040265,26]
[310245747,1704414693849,-977.7073741,0.00040268,5]
[310245748,1704414693858,-157.0,0.00040274,14]
[310245749,1704414693867,-150.0,0.00040303,2]
[310245750,1704414693877,-653.35,0.00040328,96]
[310245751,1704414693887,-500.0,0.00040328,93]
[310245752,1704414693899,-2106.07,0.00040357,2]
[310245753,1704414693909,-191.92542348,0.00040376,14]
[310245754,1704414693918,-150.0,0.00040405,2]
[310245755,1704414693927,-522.67,0.0004041,2]
[310245756,1704414693937,-1000.0,0.00040424,31]
[310245757,1704414693946,-792.0,0.00040432,20]
[310245758,1704414693957,-456.5305687,0.00040472,2]
[310245759,1704414693966,-157.40104,0.00040498,2]
[310245760,1704414693976,-38149.6870433,0.000405,2]
[310245761,1704414693986,-11000.0,0.000405,4]
[310245762,1704414693995,-150.0,0.000405,7]
[310245763,1704414694005,-150.0,0.000405,7]
[310245764,1704414694014,-150.0,0.000405,7]
[310245765,1704414694023,-150.0,0.000405,7]
[310245766,1704414694033,-150.0,0.000405,7]
[310245767,1704414694043,-150.0,0.000405,7]
[310245768,1704414694052,-150.0,0.000405,7]
[310245769,1704414694062,-158.26692155,0.000405,7]
[310245770,1704414694073,-151.10926239,0.000405,7]
[310245771,1704414694083,-150.0,0.000405,7]
[310245772,1704414694092,-653.35,0.00040547,98]
[310245773,1704414694102,-500.0,0.00040547,94]
[310245774,1704414694112,-352.808297,0.00040548,14]
[310245775,1704414694121,-150.0,0.00040567,7]
[310245776,1704414694130,-302.0,0.00040575,4]
[310245777,1704414694139,-169.0,0.0004058,60]
[310245778,1704414694151,-169.0,0.0004059,60]
[310245779,1704414694161,-1482.0017097,0.00040634,2]
[310245780,1704414694170,-448.35,0.00040634,2]
[310245781,1704414694179,-150.0,0.00040634,7]
[310245782,1704414694188,-4083.0,0.00040658,10]
[310245783,1704414694198,-1086.5109966,0.00040662,2]
[310245784,1704414694208,-150.0,0.00040688,7]
[310245785,1704414694218,-150.0,0.00040688,7]
[310245786,1704414694228,-150.0,0.00040689,3]
[310245787,1704414694238,-1203427.52,0.0004069,7]
[310245788,1704414694247,-151.0,0.0004069,7]
[310245789,1704414694257,-151.0,0.0004069,7]
[310245790,1704414694266,-151.0,0.0004069,7]
[310245791,1704414694275,-151.0,0.0004069,7]
[310245792,1704414694285,-151.0,0.0004069,7]
[310245793,1704414694294,-212.581512,0.0004069,7]
[310245794,1704414694305,-212.581512,0.0004069,7]
[310245795,1704414694314,-151.0,0.0004069,7]
[310245796,1704414694324,-520.818755,0.0004069,7]
[310245797,1704414694333,-520.818755,0.0004069,7]
[310245798,1704414694343,-151.0,0.0004069,7]
[310245799,1704414694352,-1444.827588,0.0004069,7]
[310245800,1704414694362,-1444.827588,0.0004069,7]
[310245801,1704414694372,-151.0,0.0004069,7]
[310245802,1704414694381,-270.368013,0.0004069,7]
[310245803,1704414694393,-216.58934,0.0004069,7]
[310245804,1704414694403,-216.58934,0.0004069,7]
[310245805,1704414694412,-495.900744,0.0004069,7]
[310245806,1704414694422,-495.900744,0.0004069,7]
[310245807,1704414694431,-1175.413069,0.0004069,7]
[310245808,1704414694440,-1175.413069,0.0004069,7]
[310245809,1704414694450,-151.0,0.0004069,7]
[310245810,1704414694459,-151.0,0.0004069,7]
[310245811,1704414694468,-151.0,0.0004069,7]
[310245812,1704414694478,-151.0,0.0004069,7]
[310245813,1704414694487,-13018.92,0.000407,7]
[310245814,1704414694497,-150.0,0.00040701,7]
[310245815,1704414694507,-1000.0,0.00040733,2]
[310245816,1704414694517,-653.35,0.00040767,100]
[310245817,1704414694526,-500.0,0.00040767,95]
[310245818,1704414694536,-150.0,0.00040769,7]
[310245819,1704414694545,-157.40104,0.00040798,2]
[310245820,1704414694554,-839.8159149,0.000408,120]
[310245821,1704414694563,-917.31,0.000408,7]
[310245822,1704414694572,-152.0,0.000408,6]
[310245823,1704414694582,-205.52286572,0.000408,5]
[310245824,1704414694591,-522.67,0.00040821,2]
[310245825,1704414694600,-150.0,0.00040836,7]
[310245826,1704414694609,-1258.05656229,0.00040852,7]
[310245827,1704414694619,-154.0,0.00040872,2]
[310245828,1704414694628,-155.0,0.00040872,2]
[310245829,1704414694637,-150.0,0.00040875,7]
[310245830,1704414694648,-150.0,0.00040875,7]
[310245831,1704414694657,-247.12265423,0.0004089,10]
[310245832,1704414694667,-1984.8758276,0.000409,60]
[310245833,1704414694676,-4625.45,0.000409,7]
[310245834,1704414694686,-150.0,0.00040903,7]
[310245835,1704414694695,-150.0,0.00040909,7]
[310245836,1704414694705,-150.0,0.00040909,7]
[310245837,1704414694714,-220.0,0.00040934,28]
[310245838,1704414694722,-150.0,0.0004095,7]
[310245839,1704414694732,-150.0,0.0004097,7]
[310245840,1704414694741,-653.35,0.00040986,102]
[310245841,1704414694750,-500.0,0.00040986,96]
[310245842,1704414694760,-500.0,0.00040987,31]
[310245843,1704414694770,-3665.0,0.0004099,2]
[310245844,1704414694782,-100000.0,0.00041,11]
[310245845,1704414694791,-2479.89062203,0.00041,4]
[310245846,1704414694801,-800.0,0.00041,2]
[310245847,1704414694809,-500.0,0.00041,4]
[310245848,1704414694818,-150163.91269541,0.00041,2]
[310245849,1704414694827,-159.34076,0.00041,7]
[310245850,1704414694837,-10600.55215885,0.00041,9]
[310245851,1704414694846,-235.21788555,0.00041,2]
[310245852,1704414694855,-300.0,0.00041,19]
[310245853,1704414694864,-7013.0,0.00041,5]
[310245854,1704414694873,-2692.87704838,0.00041,10]
[310245855,1704414694882,-2670.11976336,0.00041,4]
[310245856,1704414694893,-500.0,0.00041,2]
[310245857,1704414694902,-500000.0,0.00041,10]
[310245858,1704414694911,-40005.93193799,0.00041,2]
[310245859,1704414694920,-1001.52757428,0.00041,2]
[310245860,1704414694930,-1010.0,0.00041,5]
[310245861,1704414694939,-152079.79383052,0.00041,5]
[310245862,1704414694948,-618.55099916,0.00041,30]
[310245863,1704414695081,-1006.0,0.00041,11]
[310245864,1704414695091,-41013.08929695,0.00041,7]
[310245865,1704414695100,-773777.86491276,0.00041,2]
[310245866,1704414695109,-384.63948013,0.00041,33]
[310245867,1704414695119,-300.0,0.00041,42]
[310245868,1704414695129,-1064.61069904,0.00041,30]
[310245869,1704414695139,-370.0,0.00041,120]
[310245870,1704414695150,-1291.02,0.00041,30]
[310245871,1704414695160,-1181.902892,0.00041,30]
[310245872,1704414695169,-201.27746478,0.00041,30]
[310245873,1704414695178,-2229.403547,0.00041,2]
[310245874,1704414695188,-4622.0,0.00041,83]
[310245875,1704414695198,-600.0,0.00041,3]
[310245876,1704414695207,-268.734408,0.00041,7]
[310245877,1704414695217,-230.0,0.00041,30]
[310245878,1704414695226,-151.0,0.00041,7]
[310245879,1704414695236,-162.368234,0.00041,7]
[310245880,1704414695246,-151.0,0.00041,7]
[310245881,1704414695256,-212.581512,0.00041,7]
[310245882,1704414695266,-212.581512,0.00041,7]
[310245883,1704414695275,-151.0,0.00041,7]
[310245884,1704414695284,-520.818755,0.00041,7]
[310245885,1704414695294,-520.818755,0.00041,7]
[310245886,1704414695303,-151.0,0.00041,7]
[310245887,1704414695313,-1444.827588,0.00041,7]
[310245888,1704414695323,-1444.827588,0.00041,7]
[310245889,1704414695332,-151.0,0.00041,7]
[310245890,1704414695342,-216.58934,0.00041,7]
[310245891,1704414695352,-216.58934,0.00041,7]
[310245892,1704414695363,-495.900744,0.00041,7]
[310245893,1704414695373,-495.900744,0.00041,7]
[310245894,1704414695383,-300.0,0.00041,16]
[310245895,1704414695392,-150.0,0.00041,14]
[310245896,1704414695403,-1000.0,0.00041,2]
[310245897,1704414695413,-1175.413069,0.00041,7]
[310245898,1704414695423,-1175.413069,0.00041,7]
[310245899,1704414695433,-151.0,0.00041,7]
[310245900,1704414695443,-151.0,0.00041,7]
[310245901,1704414695453,-151.0,0.00041,7]
[310245902,1704414695462,-915.5646056,0.00041,5]
[310245903,1704414695472,-151.0,0.00041,7]
[310245904,1704414695482,-150.0,0.00041037,7]
[310245905,1704414695493,-150.0,0.00041063,7]
[310245906,1704414695504,-150.0,0.00041063,7]
[310245907,1704414695514,-2819.0,0.00041078,27]
[310245908,1704414695524,-500.0,0.00041095,2]
[310245909,1704414695534,-500.0,0.00041095,2]
[310245910,1704414695543,-500.0,0.00041095,2]
[310245911,1704414695553,-500.0,0.00041095,2]
[310245912,1704414695563,-500.0,0.00041095,2]
[310245913,1704414695573,-500.0,0.00041095,2]
[310245914,1704414695584,-500.0,0.00041095,2]
[310245915,1704414695594,-500.0,0.00041095,2]
[310245916,1704414695604,-500.0,0.00041095,2]
[310245917,1704414695614,-500.0,0.00041095,2]
[310245918,1704414695624,-500.0,0.00041095,2]
[310245919,1704414695633,-500.0,0.00041095,2]
[310245920,1704414695643,-500.0,0.00041095,2]
[310245921,1704414695654,-500.0,0.00041095,2]
[310245922,1704414695663,-500.0,0.00041095,2]
[310245923,1704414695673,-500.0,0.00041095,2]
[310245924,1704414695683,-500.0,0.00041095,2]
[310245925,1704414695692,-500.0,0.00041095,2]
[310245926,1704414695702,-248.95906422,0.00041095,2]
[310245927,1704414695712,-990.33,0.00041095,30]
[310245928,1704414695721,-990.33,0.00041095,30]
[310245929,1704414695736,-990.33,0.00041095,30]
[310245930,1704414695745,-990.33,0.00041095,30]
[310245931,1704414695755,-990.33,0.00041095,30]
[310245932,1704414695766,-990.33,0.00041095,30]
[310245933,1704414695776,-990.33,0.00041095,30]
[310245934,1704414695787,-990.33,0.00041095,30]
[310245935,1704414695796,-990.33,0.00041095,30]
[310245936,1704414695806,-990.33,0.00041095,30]
[310245937,1704414695816,-990.33,0.00041095,30]
[310245938,1704414695825,-990.33,0.00041095,30]
[310245939,1704414695836,-990.33,0.00041095,30]
[310245940,1704414695845,-990.33,0.00041095,30]
[310245941,1704414695855,-990.33,0.00041095,30]
[310245942,1704414695865,-990.33,0.00041095,30]
[310245943,1704414695875,-990.33,0.00041095,30]
[310245944,1704414695884,-990.33,0.00041095,30]
[310245945,1704414695896,-990.33,0.00041095,30]
[310245946,1704414695906,-990.33,0.00041095,30]
[310245947,1704414695915,-990.33,0.00041095,30]
[310245948,1704414695925,-990.33,0.00041095,30]
[310245949,1704414695934,-990.33,0.00041095,30]
[310245950,1704414695944,-990.4421835,0.00041095,30]
[310245951,1704414695953,-203.14904874,0.00041095,14]
[310245952,1704414695963,-1232.64,0.00041095,10]
[310245953,1704414695973,-1232.64,0.00041095,10]
[310245954,1704414695983,-1232.64,0.00041095,10]
[310245955,1704414695993,-1232.64,0.00041095,10]
[310245956,1704414696004,-1232.64,0.00041095,10]
[310245957,1704414696014,-1232.64,0.00041095,10]
[310245958,1704414696024,-1232.64,0.00041095,10]
[310245959,1704414696034,-1232.64,0.00041095,10]
[310245960,1704414696050,-1232.64,0.00041095,10]
[310245961,1704414696062,-1232.64,0.00041095,10]
[310245962,1704414696079,-1232.64,0.00041095,10]
[310245963,1704414696089,-1232.64,0.00041095,10]
[310245964,1704414696112,-1232.64,0.00041095,10]
[310245965,1704414696132,-1232.64,0.00041095,10]
[310245966,1704414696142,-847.16,0.00041095,2]
[310245967,1704414696162,-1232.64,0.00041095,10]
[310245968,1704414696182,-1232.64,0.00041095,10]
[310245969,1704414696199,-1232.64,0.00041095,10]
[310245970,1704414696210,-1232.64,0.00041095,10]
[310245971,1704414696234,-1232.64,0.00041095,10]
[310245972,1704414696258,-1232.64,0.00041095,10]
[310245973,1704414696281,-1232.64,0.00041095,10]
[310245974,1704414696293,-1232.64,0.00041095,10]
[310245975,1704414696303,-1232.64,0.00041095,10]
[310245976,1704414696312,-1232.83013676,0.00041095,10]
[310245977,1704414696322,-250.0,0.00041095,2]
[310245978,1704414696332,-500.0,0.00041095,7]
[310245979,1704414696341,-235.62017577,0.00041095,12]
[310245980,1704414696351,-435.14,0.00041095,2]
[310245981,1704414696360,-870.28,0.00041095,2]
[310245982,1704414696370,-1305.42,0.00041095,2]
[310245983,1704414696379,-1740.56,0.00041095,2]
[310245984,1704414696389,-2175.7,0.00041095,2]
[310245985,1704414696402,-2610.84,0.00041095,2]
[310245986,1704414696412,-3045.98,0.00041095,2]
[310245987,1704414696421,-3481.12,0.00041095,2]
[310245988,1704414696431,-3916.26,0.00041095,2]
[310245989,1704414696441,-4351.4,0.00041095,2]
[310245990,1704414696452,-4786.54,0.00041095,2]
[310245991,1704414696462,-5221.68,0.00041095,2]
[310245992,1704414696472,-5656.82,0.00041095,2]
[310245993,1704414696482,-2175.7155331,0.00041095,2]
[310245994,1704414696491,-1000.0,0.00041095,2]
[310245995,1704414696501,-212.37326887,0.00041095,2]
[310245996,1704414696511,-1036.05,0.00041095,30]
[310245997,1704414696523,-1036.05,0.00041095,30]
[310245998,1704414696532,-1036.05,0.00041095,30]
[310245999,1704414696546,-1036.05,0.00041095,30]
[310246000,1704414696555,-1036.05,0.00041095,30]
[310246001,1704414696564,-1036.05,0.00041095,30]
[310246002,1704414696573,-1036.05,0.00041095,30]
[310246003,1704414696582,-1036.05,0.00041095,30]
[310246004,1704414696592,-1036.05,0.00041095,30]
[310246005,1704414696601,-1036.05,0.00041095,30]
[310246006,1704414696611,-1036.05,0.00041095,30]
[310246007,1704414696623,-1036.05,0.00041095,30]
[310246008,1704414696632,-1036.05,0.00041095,30]
[310246009,1704414696641,-1036.05,0.00041095,30]
[310246010,1704414696653,-1036.05,0.00041095,30]
[310246011,1704414696662,-1036.05,0.00041095,30]
[310246012,1704414696672,-1036.05,0.00041095,30]
[310246013,1704414696681,-1036.05,0.00041095,30]
[310246014,1704414696692,-1036.05,0.00041095,30]
[310246015,1704414696701,-1036.05,0.00041095,30]
[310246016,1704414696710,-1036.05,0.00041095,30]
[310246017,1704414696720,-1036.05,0.00041095,30]
[310246018,1704414696729,-1036.05,0.00041095,30]
[310246019,1704414696739,-1036.28464334,0.00041095,30]
[310246020,1704414696748,-500.0,0.00041095,2]
[310246021,1704414696757,-500.0,0.00041095,2]
[310246022,1704414696767,-500.0,0.00041095,2]
[310246023,1704414696780,-500.0,0.00041095,2]
[310246024,1704414696789,-500.0,0.00041095,2]
[310246025,1704414696799,-500.0,0.00041095,2]
[310246026,1704414696808,-500.0,0.00041095,2]
[310246027,1704414696818,-190.08709649,0.00041095,2]
[310246028,1704414696828,-5000.0,0.00041095,14]
[310246029,1704414696838,-5000.0,0.00041095,14]
[310246030,1704414696849,-2352.48000267,0.00041095,14]
[310246031,1704414696859,-1000.0,0.00041095,2]
[310246032,1704414696868,-1000.0,0.00041095,2]
[310246033,1704414696879,-1000.0,0.00041095,2]
[310246034,1704414696889,-1000.0,0.00041095,2]
[310246035,1704414696900,-1000.0,0.00041095,2]
[310246036,1704414696910,-1000.0,0.00041095,2]
[310246037,1704414696919,-1000.0,0.00041095,2]
[310246038,1704414696929,-1000.0,0.00041095,2]
[310246039,1704414696938,-1000.0,0.00041095,2]
[310246040,1704414696948,-1000.0,0.00041095,2]
[310246041,1704414696957,-1000.0,0.00041095,2]
[310246042,1704414696966,-160.59356374,0.00041095,2]
[310246043,1704414696976,-1061.69736936,0.00041095,30]
[310246044,1704414696985,-20000.0,0.00041095,10]
[310246045,1704414696994,-20000.0,0.00041095,10]
[310246046,1704414697003,-20000.0,0.00041095,10]
[310246047,1704414697012,-20000.0,0.00041095,10]
[310246048,1704414697021,-20000.0,0.00041095,10]
[310246049,1704414697030,-20000.0,0.00041095,10]
[310246050,1704414697040,-20000.0,0.00041095,10]
[310246051,1704414697049,-20000.0,0.00041095,10]
[310246052,1704414697059,-20000.0,0.00041095,10]
[310246053,1704414697069,-20000.0,0.00041095,10]
[310246054,1704414697078,-20000.0,0.00041095,10]
[310246055,1704414697088,-20000.0,0.00041095,10]
[310246056,1704414697098,-8861.05215112,0.00041095,10]
[310246057,1704414697109,-153.84,0.00041096,2]
[310246058,1704414697118,-150.0,0.00041096,10]
[310246059,1704414697127,-150.0,0.00041096,10]
[310246060,1704414697136,-150.0,0.00041096,10]
[310246061,1704414697149,-150.0,0.00041096,10]
[310246062,1704414697158,-300.0,0.00041096,10]
[310246063,1704414697264,-150.0,0.00041096,10]
[310246064,1704414697285,-300.0,0.00041096,10]
[310246065,1704414697294,-299.70993559,0.00041096,10]
[310246066,1704414697303,-300.0,0.00041096,10]
[310246067,1704414697313,-300.0,0.00041096,10]
[310246068,1704414697323,-376.29544786,0.00041096,10]
[310246069,1704414697333,-500.0,0.00041096,4]
[310246070,1704414697342,-613.0,0.00041096,4]
[310246071,1704414697351,-1000.0,0.00041096,3]
[310246072,1704414697360,-1000.0,0.00041096,3]
[310246073,1704414697370,-1000.0,0.00041096,3]
[310246074,1704414697379,-1000.0,0.00041096,3]
[310246075,1704414697388,-500.0,0.00041096,4]
[310246076,1704414697399,-500.0,0.00041096,4]
[310246077,1704414697408,-500.0,0.00041096,4]
[310246078,1704414697419,-500.0,0.00041096,4]
[310246079,1704414697428,-180.0,0.00041096,2]
[310246080,1704414697437,-1000.0,0.00041096,3]
[310246081,1704414697446,-500.0,0.00041096,4]
[310246082,1704414697456,-1000.0,0.00041096,3]
[310246083,1704414697466,-1000.0,0.00041096,3]
[310246084,1704414697475,-1000.0,0.00041096,3]
[310246085,1704414697485,-1000.0,0.00041096,3]
[310246086,1704414697494,-1000.0,0.00041096,3]
[310246087,1704414697505,-1000.0,0.00041096,3]
[310246088,1704414697514,-1000.0,0.00041096,3]
[310246089,1704414697523,-761.0,0.00041096,3]
[310246090,1704414697533,-8146.55,0.00041096,2]
[310246091,1704414697542,-6804.88,0.00041096,2]
[310246092,1704414697551,-500.0,0.00041096,4]
[310246093,1704414697561,-500.0,0.00041096,4]
[310246094,1704414697570,-500.0,0.00041096,4]
[310246095,1704414697580,-500.0,0.00041096,4]
[310246096,1704414697590,-500.0,0.00041096,4]
[310246097,1704414697599,-500.0,0.00041096,4]
[310246098,1704414697608,-500.0,0.00041096,4]
[310246099,1704414697617,-500.0,0.00041096,4]
[310246100,1704414697627,-500.0,0.00041096,4]
[310246101,1704414697637,-4124.73832245,0.00041096,2]
[310246102,1704414697650,-1701.0,0.00041096,10]
[310246103,1704414697659,-168.65800839,0.00041097,2]
[310246104,1704414697668,-508.0,0.000411,2]
[310246105,1704414697677,-150.0,0.00041104,30]
[310246106,1704414697686,-150.0,0.00041143,30]
[310246107,1704414697695,-847.16,0.0004115,2]
[310246108,1704414697705,-150.0,0.00041172,30]
[310246109,1704414697714,-157.40104,0.00041198,2]
[310246110,1704414697723,-847.16,0.00041205,2]
[310246111,1704414697733,-653.35,0.00041205,104]
[310246112,1704414697742,-500.0,0.00041205,97]
[310246113,1704414697751,-152.95511515,0.00041221,11]
[310246114,1704414697761,-522.67,0.00041232,2]
[310246115,1704414697771,-150.0,0.00041239,30]
[310246116,1704414697784,-150.0,0.0004124,2]
[310246117,1704414697793,-150.0,0.0004125,30]
[310246118,1704414697803,-150.0,0.0004125,30]
[310246119,1704414697812,-604.0,0.00041257,7]
[310246120,1704414697822,-847.16,0.0004126,2]
[310246121,1704414697831,-150.0,0.00041306,30]
[310246122,1704414697841,-847.16,0.00041315,2]
[310246123,1704414697850,-150.0,0.00041318,30]
[310246124,1704414697860,-150.0,0.00041318,30]
[310246125,1704414697869,-847.16,0.00041369,2]
[310246126,1704414697879,-1000.0,0.0004137,120]
[310246127,1704414697888,-150.0,0.00041373,30]
[310246128,1704414697898,-917.31,0.000414,7]
[310246129,1704414697907,-150.0,0.000414,30]
[310246130,1704414697916,-150.0,0.000414,30]
[310246131,1704414697925,-197457.58,0.0004142,7]
[310246132,1704414697935,-847.16,0.00041424,2]
[310246133,1704414697944,-653.35,0.00041424,106]
[310246134,1704414697954,-500.0,0.00041424,98]
[310246135,1704414697964,-150.0,0.00041438,30]
[310246136,1704414697973,-150.0,0.00041438,30]
[310246137,1704414697982,-150.0,0.0004144,30]
[310246138,1704414697991,-167.0,0.00041458,2]
[310246139,1704414698000,-847.16,0.00041479,2]
[310246140,1704414698009,-157.40105,0.00041498,2]
[310246141,1704414698019,-250.0,0.000415,2]
[310246142,1704414698027,-10000.0,0.000415,7]
[310246143,1704414698036,-500.0,0.000415,2]
[310246144,1704414698045,-500.0,0.000415,6]
[310246145,1704414698055,-150.0,0.00041507,30]
[310246146,1704414698066,-263.05936683,0.00041522,4]
[310246147,1704414698076,-847.16,0.00041534,2]
[310246148,1704414698086,-1000.0,0.00041548,31]
[310246149,1704414698095,-150.0,0.00041575,30]
[310246150,1704414698104,-720.25417686,0.00041581,7]
[310246151,1704414698114,-847.16,0.00041589,2]
[310246152,1704414698123,-382718.73372936,0.000416,2]
[310246153,1704414698132,-917.31,0.000416,7]
[310246154,1704414698141,-4625.45,0.000416,7]
[310246155,1704414698153,-569.14550734,0.00041623,13]
[310246156,1704414698163,-150.0,0.00041625,30]
[310246157,1704414698173,-150.0,0.00041625,30]
[310246158,1704414698182,-150.0,0.00041642,30]
[310246159,1704414698191,-522.67,0.00041643,2]
[310246160,1704414698201,-847.16,0.00041643,2]
[310246161,1704414698211,-653.35,0.00041643,108]
[310246162,1704414698220,-500.0,0.00041643,99]
[310246163,1704414698229,-352.808297,0.00041644,14]
[310246164,1704414698239,-1343.99538288,0.00041666,10]
[310246165,1704414698248,-2030010.49,0.0004169,12]
[310246166,1704414698258,-624.04860101,0.0004169,2]
[310246167,1704414698267,-870.50436255,0.0004169,2]
[310246168,1704414698277,-151.0,0.0004169,14]